Cogmind - Beta 14 @@@ ROGUE MODE // 2024.08.14 @ 17:06:46 Player: dp-fld Result: Destroyed by P-70 Sage with High-powered Shock Rifle Performance ------------- Evolutions (6) 3000 Regions Visited (13) 2600 Robots Destroyed (282) 1410 Value Destroyed (10587) 10587 Prototype IDs (26) 520 Alien Tech Used (0) 0 Bonus (3378) 3378 TOTAL SCORE: 21495 Bonus ------- Triggered High Security 500 High Alert Combat Kills 2222 Follower Combat Kills 611 Registered with UFD 300 Friendly Fire -255 Cogmind --------- Core Integrity 0/1150 Matter 300/300 Energy 100/100 System Corruption 10% Temperature Cool (12) Movement Core (50) Location -4/Factory Parts ------- > --- POWER (2) -------- (None) > --- PROPULSION (6) --- (None) > --- UTILITY (7) ------ Advanced Signal Interpreter > --- WEAPON (4) ------- (None) > --- INVENTORY (5) ---- Advanced Energy Well (500) Particle Charger Improved Particle Charger Improved Phase Shifter Botcube Peak State ------------ > --- POWER ------------ Cooled Deuterium Engine > --- PROPULSION ------- Medium Treads Medium Treads Medium Treads Heavy Treads > --- UTILITY ---------- Advanced Heat Sink High-capacity Storage Unit Experimental Sensor Array Advanced Terrain Scan Processor Hardened Heavy Armor Plating Long-range Tractor Beam > --- WEAPON ----------- KE Penetrator KE Penetrator Helical Railgun Helical Railgun > --- INVENTORY -------- Light Angular Momentum Engine Cooled Fission Core Medium Treads Scrap Suit Improved Energy Well Improved Terrain Scanner Kinecellerator Improved Weapon Cycler Transmission Jammer Hardened Medium Armor Plating Advanced Shield Generator Advanced Drone Bay Heavy Phase Cannon Mini Assault Cannon Improved Grenade Launcher Power Maul DRS Beacon Botcube [Rating: 102] Favorites ----------- Power Improved Deuterium Engine Engine Improved Deuterium Engine Power Core Light Nuclear Core Reactor Light Antimatter Reactor Propulsion Light Treads Treads Light Treads Leg Aluminum Leg Wheel Armored Wheel Hover Unit Improved Gyrokinetic Inverter Flight Unit Improved VTOL Module Utility High-capacity Storage Unit Device Improved Heat Sink Storage High-capacity Storage Unit Processor Advanced Terrain Scan Processor Protection Improved Light Armor Plating Weapon Precision Assault Rifle Energy Gun Medium Laser Energy Cannon Advanced Beam Cannon Ballistic Gun Precision Assault Rifle Ballistic Cannon Improved Light Cannon Launcher Grenade Launcher Impact Weapon Maul Slashing Weapon Katana Special Melee Weapon Improved Datajack Build | -11 -10 -10 -9 -9 -9 -8 -8 -7 -7 -7 -7 -5 -4 ------- Run | Yrd Mat Min Mat Min Exi Min Mat Fac Sto Rec Scr Fac Fac Slots Evolved 12 | . . . 2 . . . 2 2 . . . 4 2 Power 1 | . . . . . . . . . . . . . 1 Propulsion 4 | . . . 1 . . . 1 . . . . 1 1 Utility 5 | . . . 1 . . . 1 1 . . . 2 . Weapon 2 | . . . . . . . . 1 . . . 1 . Parts Attached 318 | 7 18 13 47 7 2 14 42 19 38 3 9 82 17 Power 26 | 1 3 1 3 . . 2 2 . 4 . 1 7 2 Engine 14 | 1 2 1 2 . . 2 1 . 2 . 1 2 . Core 10 | . 1 . 1 . . . 1 . 2 . . 4 1 Reactor 2 | . . . . . . . . . . . . 1 1 Propulsion 91 | 2 6 5 22 . . 4 14 1 9 1 1 20 6 Treads 64 | . 6 5 22 . . 4 8 1 6 1 . 11 . Leg 16 | 2 . . . . . . 5 . 2 . . 2 5 Wheel 9 | . . . . . . . . . 1 . 1 7 . Hover 1 | . . . . . . . . . . . . . 1 Flight 1 | . . . . . . . 1 . . . . . . Utility 104 | 2 3 1 12 3 1 3 9 11 14 2 2 32 9 Device 57 | 1 1 1 3 2 . 2 6 7 6 2 . 21 5 Storage 11 | 1 2 . 2 1 1 . . . 1 . . 2 1 Processor 5 | . . . 1 . . . . 1 1 . . . 2 Hackware . | . . . . . . . . . . . . . . Protection 31 | . . . 6 . . 1 3 3 6 . 2 9 1 Artifact . | . . . . . . . . . . . . . . Weapon 97 | 2 6 6 10 4 1 5 17 7 11 . 5 23 . Energy Gun 10 | 2 5 2 . . . . 1 . . . . . . Energy Cannon 8 | . . . . . . . 5 . 1 . . 2 . Ballistic Gun 41 | . . 2 7 1 . 2 7 1 3 . 5 13 . Ballistic Cannon 15 | . . . 1 1 . 2 . 5 5 . . 1 . Launcher 9 | . 1 2 . 1 . 1 1 . . . . 3 . Special Weapon . | . . . . . . . . . . . . . . Impact Weapon 8 | . . . 2 1 1 . . . . . . 4 . Slashing Weapon 5 | . . . . . . . 3 1 1 . . . . Piercing Weapon . | . . . . . . . . . . . . . . Special Melee Weapon 1 | . . . . . . . . . 1 . . . . Unidentified Prototypes 11 | . . . . 1 . . 1 . 2 . . 6 1 Parts Lost 81 | . 1 . 3 1 . 9 5 . 20 . . 24 18 Power 8 | . . . 1 . . 2 . . 2 . . 1 2 Propulsion 30 | . . . . . . 3 4 . 8 . . 9 6 Utility 27 | . . . 2 . . 3 1 . 6 . . 9 6 Weapon 16 | . 1 . . 1 . 1 . . 4 . . 5 4 Highest Loss Streak 12 | . 1 . 2 1 . 3 2 . 12 . . 8 7 To Critical Strikes 3 | . . . 1 . . . 1 . . . . 1 . Average Slot Usage (%) 93 | . 99 100 99 100 88 99 95 91 77 98 84 89 59 Engine 5 | . 4 14 10 . . 10 7 . 1 7 7 2 . Core 2 | . 9 . . 11 11 . 1 7 3 . . 2 1 Treads 24 | . 18 28 33 33 33 32 30 30 13 18 23 17 . Leg 3 | . 9 . . . . . 4 . 5 11 . 1 13 Wheel 1 | . . . . . . . . . 1 . 6 3 5 Device 13 | . 14 14 9 11 11 19 14 7 7 14 15 17 8 Storage 9 | . 14 14 14 11 11 11 9 7 6 7 7 4 5 Processor 2 | . . . . . . . . 7 5 7 7 4 4 Protection 6 | . . . 9 11 11 2 9 6 7 7 7 8 2 Energy Gun 3 | . 27 5 . . . . 2 . . . . . . Energy Cannon 1 | . . . . . . . 7 2 . . . 2 3 Ballistic Gun 9 | . . 17 12 10 . 4 5 . 11 22 7 17 5 Ballistic Cannon 3 | . . . 8 11 . 9 . 12 6 . . . . Peak Build Rating 102 | 7 11 12 18 26 19 26 33 44 45 42 46 102 100 Average Rating 34 | 5 9 10 16 18 16 22 28 41 35 41 34 82 72 On Entrance 23 | . 7 9 11 18 19 16 22 29 40 42 29 46 39 Naked Turns 22 | . . . . . . . . . . . . 22 . Heaviest Build 103 | 13 51 54 65 57 52 58 73 81 81 65 72 103 84 Greatest Support 154 | 20 40 40 60 60 60 60 80 80 80 60 60 154 75 Greatest Overweight (x) 21 | 2 1 1 1 . . 1 1 1 21 1 5 10 4 Average Overweight (x) 1 | . . 1 . . . . . . 1 . 4 1 1 Largest Inventory Capacity 20 | 8 20 20 20 20 20 20 20 20 20 20 20 20 10 Average Capacity 19 | 7 16 20 20 20 20 20 20 20 18 20 20 19 9 Most Carried 20 | 6 20 20 20 20 20 19 20 20 20 20 20 20 7 Average Carried 17 | 4 15 19 19 19 20 17 19 19 14 18 17 18 6 Final Capacity 20 | 8 20 20 20 20 20 20 20 20 20 20 20 10 5 Final Carried 20 | 4 20 20 19 20 20 17 20 20 17 20 20 5 5 Class Distribution -------------------- 64% | Scavenger-Mutant 21% | Scavenger-Tank 6% | Mutant 4% | Tank Dominant Class ---------------- Scavenger-Mutant | -10/Materials Scavenger-Mutant | -10/Mines Scavenger-Mutant | -9/Materials Scavenger-Mutant | -9/Mines Scavenger-Mutant | -9/Exiles Scavenger-Mutant | -8/Mines Scavenger-Mutant | -8/Materials Scavenger-Mutant | -7/Factory Scavenger-Tank | -7/Storage Scavenger-Tank | -7/Recycling Scavenger-Mutant | -7/Scraptown Scavenger-Tank | -5/Factory Scavenger-Tank | -4/Factory Resources | -11 -10 -10 -9 -9 -9 -8 -8 -7 -7 -7 -7 -5 -4 ----------- Run | Yrd Mat Min Mat Min Exi Min Mat Fac Sto Rec Scr Fac Fac Matter Collected 9585 | 270 510 137 1302 302 . 439 932 647 1146 345 66 3115 374 Remotely 1789 | . . . . . . . . 152 433 190 . 1014 . Salvage Created 12070 | 119 787 94 1857 89 . 442 1585 570 927 313 . 4388 899 Parts 568 | 13 48 3 124 3 . 24 75 28 35 11 . 176 28 Haulers Intercepted 20 | . 2 . 6 . . . 5 3 . . . 4 . Recyclers Shooed 8 | . . . . . . . 2 1 . . . 3 2 Parts Field Recycled . | . . . . . . . . . . . . . . Retrieved Matter . | . . . . . . . . . . . . . . Parts Self-Destructed . | . . . . . . . . . . . . . . Prevented . | . . . . . . . . . . . . . . Kills | -11 -10 -10 -9 -9 -9 -8 -8 -7 -7 -7 -7 -5 -4 ------- Run | Yrd Mat Min Mat Min Exi Min Mat Fac Sto Rec Scr Fac Fac Combat Hostiles Destroyed 208 | . 17 2 42 12 . 10 24 12 18 2 . 58 11 Melee 4 | . . . . . . . . . . . . . 4 Guns 127 | . 14 2 29 1 . 6 20 . 12 2 . 37 4 Cannons 53 | . . . 13 3 . 2 4 12 5 . . 11 3 AOE 22 | . 3 . . 8 . 2 . . . . . 9 . Classes Destroyed 18 | 1 6 . 3 2 . 1 2 1 . . . 2 . Worker 19 | . 2 . 1 . . 3 3 . . . . 7 3 Builder 14 | . 1 . 2 . . . 1 1 . . . 8 1 Tunneler 8 | 5 . . . . . 1 . . . . . 1 1 Hauler 20 | . 2 . 6 . . . 5 3 . . . 4 . Recycler 14 | . . . 1 . . . 2 1 1 2 . 6 1 Mechanic 1 | . . . . . . . . . . . . 1 . Operator 2 | . 1 . 1 . . . . . . . . . . Watcher 4 | . . . . . . . 2 . . . . 1 1 Swarmer 15 | . 3 . 8 . . . . . . . . 4 . Grunt 107 | . 14 2 22 1 . 9 15 7 10 . . 20 7 Brawler 6 | . . . 2 . . . 1 . 1 . . 2 . Duelist 9 | . . . . . . 1 . 1 1 . . 6 . Protector 3 | . . . . . . . . . . . . 3 . Sentry 28 | . . . 10 . . . 6 1 5 2 . 3 1 Demolisher 2 | . . . . 2 . . . . . . . . . Hunter 12 | . . . . . . . 2 . . . . 8 2 Programmer 18 | . . . . . . . . 3 1 . . 13 1 Assembled 9 | . . . . 9 . . . . . . . . . Best Kill Streak 11 | 2 5 2 6 11 . 8 4 4 3 1 . 10 6 Combat Bots Only 11 | . 3 2 6 11 . 4 3 4 3 1 . 9 3 Max Kills in Single Turn 6 | 1 2 1 2 5 . 2 2 1 1 1 . 6 1 Gunslinging 1 | . . . . . . . 1 . . . . 1 . Exploded 5 | . 1 . . 5 . 1 . . . . . 5 . Melee 1 | . . . . . . . . . . . . . 1 Uniques/NPCs Destroyed . | . . . . . . . . . . . . . . Combat | -11 -10 -10 -9 -9 -9 -8 -8 -7 -7 -7 -7 -5 -4 -------- Run | Yrd Mat Min Mat Min Exi Min Mat Fac Sto Rec Scr Fac Fac Hostile Shots Fired 1481 | . 60 5 152 29 . 62 113 84 234 52 . 426 264 Missed 408 | . 21 4 39 6 . 15 31 28 57 11 . 119 77 Damage Taken 18936 | . 434 15 1398 678 . 812 1307 902 3150 352 . 5923 3965 Core 3035 | . 36 15 164 72 . 58 158 64 492 47 . 766 1163 Absorbed by Shields 705 | . . . . . . . . . . . . 705 . Reduced by Siege Mode 107 | . . . . . . . . . . . . 107 . Redirected to Shielding 256 | . . . . . . 26 51 . 3 . . 176 . Regen/Repaired (Parts) 192 | . 102 . . . . . . 80 . . . . 10 Core Remaining (%) 52 | 100 . 79 . . . 26 71 . . . 13 23 . Volleys Fired 657 | 16 46 5 104 22 . 35 109 48 84 12 . 144 32 Largest 4 | 2 2 2 2 2 . 2 2 2 3 3 . 4 3 Hottest 199 | 80 100 46 64 62 . 63 136 107 144 78 . 199 150 Shots Fired 1567 | 32 92 8 207 36 . 56 216 94 176 39 . 532 79 Gun 1133 | 32 89 6 137 13 . 32 182 . 100 39 . 447 56 Cannon 415 | . . . 70 20 . 20 33 94 76 . . 79 23 Launcher 19 | . 3 2 . 3 . 4 1 . . . . 6 . Special . | . . . . . . . . . . . . . . Kinetic 1241 | . . 6 207 33 . 52 130 84 162 39 . 472 56 Thermal 228 | . 43 . . . . . 85 10 14 . . 53 23 Explosive 19 | . 3 2 . 3 . 4 1 . . . . 6 . Electromagnetic 79 | 32 46 . . . . . . . . . . 1 . Robot Hit Streak 48 | 6 15 10 48 9 . 5 11 11 16 9 . 11 13 Robot Miss Streak 6 | 4 2 . 6 2 . 6 6 4 4 2 . 5 4 Penetration Max 2 | . . . . . . . 1 . . . . 2 1 Secondary Targets 9 | . 1 . . . . 1 1 . . . . 6 . Max Gunslinging Chain 2 | . 1 . . . . 1 1 . . . . 2 . Shots Hit Robots 1032 | 16 65 4 141 21 . 35 144 60 123 22 . 323 78 Core Hits 530 | 5 39 3 71 17 . 37 69 20 43 9 . 188 29 Critical Kills 8 | . . . . . . . 1 . 1 . . 4 2 Critical Parts Destroyed 18 | . . . . . . 2 3 . . . . 8 5 Critical Strikes 48 | . 3 . 4 1 . 3 6 5 4 . . 15 7 Burn 5 | . 3 . . . . . 2 . . . . . . Meltdown 2 | . . . . . . . . . 1 . . 1 . Destroy 16 | . . . . . . 1 4 . . . . 8 3 Blast 17 | . . . 4 1 . 1 . 5 3 . . 3 . Smash 8 | . . . . . . 1 . . . . . 3 4 Melee Attacks 74 | . . . 13 2 . 1 9 6 . . . 8 35 Impact 59 | . . . 13 2 . 1 . . . . . 8 35 Slashing 15 | . . . . . . . 9 6 . . . . . Piercing . | . . . . . . . . . . . . . . Sneak Attacks 10 | . . . . . . 1 1 1 . . . 5 2 Combat Hostiles . | . . . . . . . . . . . . . . Follow-up Attacks . | . . . . . . . . . . . . . . Damage Inflicted 29961 | 213 1190 88 2576 863 . 1084 2828 1967 2718 462 . 12894 3078 Guns 16462 | 213 868 65 1786 110 . 496 2514 . 1241 462 . 7819 888 Cannons 6839 | . . . 788 299 . 220 248 1689 1467 . . 1629 499 Explosions 4334 | . 322 . . 433 . 261 . 175 . . . 2833 310 Melee 2158 | . . . . . . 107 59 103 . . . 533 1356 Ramming 168 | . . 23 2 21 . . 7 . 10 . . 80 25 Kinetic 18998 | . . 65 2574 409 . 716 1757 1585 2418 462 . 8124 888 Thermal 4783 | . 486 . . . . . 1005 279 290 . . 2015 708 Explosive 3230 | . 293 . . 433 . 261 . . . . . 2142 101 Electromagnetic 624 | 213 411 . . . . . . . . . . . . Impact 1996 | . . . . . . 107 . . . . . 533 1356 Slashing 162 | . . . . . . . 59 103 . . . . . Piercing . | . . . . . . . . . . . . . . Highest Corruption 24 | . . . 4 4 4 4 . 3 23 23 . 24 10 Average Corruption 8 | . . . 3 4 4 4 . 1 18 23 . 8 2 Corruption Purged . | . . . . . . . . . . . . . . Corruption Blocked . | . . . . . . . . . . . . . . Effects 363 | . . . 62 27 11 19 . 11 43 82 . 100 8 Message Errors 68 | . . . 8 7 . 5 . 2 3 18 . 24 1 Matter Fused 95 | . . . 18 8 5 4 . 4 14 15 . 23 4 Heat Flow Errors 56 | . . . 9 2 2 3 . 1 8 14 . 16 1 Energy Discharges 41 | . . . 8 2 . 1 . 4 7 10 . 9 . Parts Rejected 5 | . . . 1 . . . . . . 1 . 2 1 Parts Fused 2 | . . . 1 . 1 . . . . . . . . Data Loss (minor) 39 | . . . 7 4 3 3 . . 3 8 . 10 1 Data Loss (major) 17 | . . . 6 2 . 1 . . . 4 . 4 . Misfires 15 | . . . 3 1 . 2 . . . 4 . 5 . Alerts 8 | . . . 1 1 . . . . . 3 . 3 . Misdirections 4 | . . . . . . . . . . 4 . . . Weapon Failures 13 | . . . . . . . . . 8 1 . 4 . Overload Shots . | . . . . . . . . . . . . . . Overflow Damage 1396 | . . . 6 43 . 107 . 178 25 . . 561 476 Projectiles 204 | . . . 6 . . . . 93 25 . . 48 32 Explosions 423 | . . . . 43 . . . 85 . . . 228 67 Melee 769 | . . . . . . 107 . . . . . 285 377 Knockbacks 47 | . . . 6 5 . 1 . 9 16 . . 4 6 Impact 9 | . . . . . . 1 . . . . . 2 6 Kinetic 35 | . . . 5 5 . . . 9 14 . . 2 . Secondary 3 | . . . 1 . . . . . 2 . . . . Self-Inflicted Damage 771 | . 12 . . 121 . . . 96 . . . 423 119 Shots 15 | . 2 . . 3 . . . 1 . . . 8 1 Rammed 21 | . . 5 1 2 . . 1 . 3 . . 5 4 Targets Rammed 21 | . . 5 1 2 . . 1 . 3 . . 5 4 Kicked . | . . . . . . . . . . . . . . Crushed . | . . . . . . . . . . . . . . Highest Temperature 543 | 108 219 . 283 223 190 151 99 337 543 268 . 404 505 Average Temperature 80 | 42 51 . 55 34 86 50 26 88 132 92 . 72 183 Received Heat Transfer 4346 | . 189 9 429 86 . 459 630 273 735 78 . 1013 445 Effects 19 | . . . 2 . . . . . 9 . . 2 6 Shutdowns 3 | . . . . . . . . . 1 . . 1 1 Energy Bleed 3 | . . . . . . . . . . . . 1 2 Interference 8 | . . . 2 . . . . . 4 . . . 2 Short Circuit 1 | . . . . . . . . . 1 . . . . Damage (minor) 3 | . . . . . . . . . 2 . . . 1 Damage (core) 1 | . . . . . . . . . 1 . . . . Siege Activations 5 | . . . . . . . . . . . . 5 . Total Turns 75 | . . . . . . . . . . . . 75 . Longest Duration 31 | . . . . . . . . . . . . 31 . Robots Corrupted 7 | . . . . . . 1 . . . . . 3 3 Combat Hostiles . | . . . . . . . . . . . . . . Parts Fried 18 | 2 1 . . . . . . . . . . 6 9 Impact Corruptions 28 | . . . . . . 4 . . . . . 7 17 Robots Melted 2 | . . . . . . . . . 1 . . 1 . Combat Hostiles 2 | . . . . . . . . . 1 . . 1 . Parts Melted 16 | . 4 . . . . . 2 . 3 . . 5 2 Heat Transferred 6839 | . 1530 . . . . . 2257 285 273 . . 1876 618 Parts Sabotaged 2 | . . . . . . . . . . . . . 2 Parts Stolen . | . . . . . . . . . . . . . . Parts Stripped . | . . . . . . . . . . . . . . Power Chain Reactions 1 | . 1 . . . . . . . . . . . . Alert | -11 -10 -10 -9 -9 -9 -8 -8 -7 -7 -7 -7 -5 -4 ------- Run | Yrd Mat Min Mat Min Exi Min Mat Fac Sto Rec Scr Fac Fac Peak Influence 2170 | 25 326 126 807 395 . 197 390 204 362 92 . 2170 1391 Initial 1100 | . 16 126 2 314 . . 18 160 59 82 . . 1100 Average 298 | 13 72 38 341 238 . 58 255 100 112 28 . 785 1243 Maximum Alert Level 5 | . 1 . 3 1 . . 1 1 1 . . 5 4 Low Security (%) 56 | 100 89 100 37 27 . 100 18 93 71 100 . 14 . Level 1 24 | . 10 . 29 72 . . 81 6 28 . . 23 . Level 2 4 | . . . 16 . . . . . . . . 14 . Level 3 4 | . . . 16 . . . . . . . . 10 . Level 4 7 | . . . . . . . . . . . . 26 100 Level 5 1 | . . . . . . . . . . . . 6 . High Security . | . . . . . . . . . . . . 5 . Max Security . | . . . . . . . . . . . . . . Squads Dispatched 45 | . 3 . 5 . . . 2 5 5 . . 21 4 Investigation 7 | . 3 . 1 . . . 1 . . . . 1 1 Extermination 13 | . . . . . . . . 3 1 . . 7 2 Reinforcement 9 | . . . 3 . . . . 2 1 . . 3 . Assault 14 | . . . 1 . . . . . 2 . . 10 1 Garrison 2 | . . . . . . . 1 . 1 . . . . Intercept . | . . . . . . . . . . . . . . Searches Triggered . | . . . . . . . . . . . . . . Construction Impeded 1 | . . . . . . . . 1 . . . . . Haulers Reinforced 3 | . . . . . . . . . . . . 3 . Active Scanning Responses . | . . . . . . . . . . . . . . Cargo Convoy Interrupts . | . . . . . . . . . . . . . . Stealth | -11 -10 -10 -9 -9 -9 -8 -8 -7 -7 -7 -7 -5 -4 --------- Run | Yrd Mat Min Mat Min Exi Min Mat Fac Sto Rec Scr Fac Fac Distress Signals 17 | . 1 . 4 . . . 7 . 2 . . 2 1 Communications Jammed 7 | . . . . . . . . . 2 1 . 4 . Distress Signals 5 | . . . . . . . . . . 1 . 4 . Times Spotted 350 | . 35 3 72 17 . 12 44 15 23 4 . 98 27 Peak Tracking Total 13 | . 4 2 7 10 . 3 6 3 5 2 . 13 9 Tactical Retreats 18 | . 1 . 3 . . . 3 1 1 1 . 6 2 Traps | -11 -10 -10 -9 -9 -9 -8 -8 -7 -7 -7 -7 -5 -4 ------- Run | Yrd Mat Min Mat Min Exi Min Mat Fac Sto Rec Scr Fac Fac Traps Triggered 3 | . . . . . . . . 3 . . . . . Indirectly . | . . . . . . . . . . . . . . Trap Hack Attempts . | . . . . . . . . . . . . . . Triggered . | . . . . . . . . . . . . . . Disarmed . | . . . . . . . . . . . . . . Reprogrammed . | . . . . . . . . . . . . . . Reused . | . . . . . . . . . . . . . . Traps Extracted . | . . . . . . . . . . . . . . Installed . | . . . . . . . . . . . . . . Triggered . | . . . . . . . . . . . . . . Machines | -11 -10 -10 -9 -9 -9 -8 -8 -7 -7 -7 -7 -5 -4 ---------- Run | Yrd Mat Min Mat Min Exi Min Mat Fac Sto Rec Scr Fac Fac Machines Disabled 59 | . 1 . 4 . . . 2 2 2 1 . 44 3 Max in Single Turn 7 | . 1 . 1 . . . 1 1 1 1 . 7 2 Garrison Access 3 | . . . . . . . 1 1 . . . 1 . Machines Repaired . | . . . . . . . . . . . . . . Machines Dismantled . | . . . . . . . . . . . . . . Machines Sabotaged . | . . . . . . . . . . . . . . Overloaded Fab Kills . | . . . . . . . . . . . . . . Hacking | -11 -10 -10 -9 -9 -9 -8 -8 -7 -7 -7 -7 -5 -4 --------- Run | Yrd Mat Min Mat Min Exi Min Mat Fac Sto Rec Scr Fac Fac Machines Accessed 53 | . 11 1 9 . 1 . 10 7 . 4 2 5 3 Terminals 36 | . 8 1 7 . . . 8 5 . 4 . 2 1 Fabricators . | . . . . . . . . . . . . . . Repair Stations 4 | . 1 . 1 . . . . 1 . . . 1 . Recycling Units 5 | . 2 . 1 . . . . . . . . 1 1 Scanalyzers 1 | . . . . . . . 1 . . . . . . Garrison Access 4 | . . . . . . . 1 1 . . . 1 1 Total Hacks 148 | . 40 1 21 . 4 . 30 16 . 9 7 12 8 Successful 80 | . 21 . 10 . 4 . 19 7 . 5 7 4 3 Failed 68 | . 19 1 11 . . . 11 9 . 4 . 8 5 Catastrophic 12 | . 1 . 1 . . . 3 3 . 1 . 2 1 Database Lockouts . | . . . . . . . . . . . . . . Manual 67 | . 25 1 14 . . . 16 5 2 . . 3 1 Terminals 98 | . 31 1 17 . . . 22 11 . 9 . 5 2 Fabricators . | . . . . . . . . . . . . . . Repair Stations 16 | . 6 . 3 . . . . 3 . . . 4 . Recycling Units 8 | . 3 . 1 . . . . . . . . 1 3 Scanalyzers 6 | . . . . . . . 6 . . . . . . Garrison Access 9 | . . . . . . . 2 2 . . . 2 3 Terminal Hacks 40 | . 9 . 4 . 4 . 6 3 . 5 7 1 1 Record 11 | . . . . . 4 . . . . . 7 . . Robot Analysis 2 | . 2 . . . . . . . . . . . . Prototype ID Bank 9 | . 4 . 2 . . . 1 1 . 1 . . . Level Access Points 1 | . . . . . . . 1 . . . . . . Alert Level 2 | . . . . . . . 1 . . 1 . . . Unreport Threat 2 | . . . . . . . . 1 . . . 1 . Locate Traps 6 | . 2 . 1 . . . 1 1 . . . . 1 Hauler Manifests 4 | . 1 . 1 . . . 2 . . . . . . Zone Layout 3 | . . . . . . . . . . 3 . . . Fabricator Hacks . | . . . . . . . . . . . . . . Repair Station Hacks 9 | . 5 . 1 . . . . 2 . . . 1 . Scan Component 6 | . 3 . 1 . . . . 1 . . . 1 . Repair 3 | . 2 . . . . . . 1 . . . . . Recycling Unit Hacks 1 | . . . . . . . . . . . . . 1 Retrieve Components 1 | . . . . . . . . . . . . . 1 Scanalyzer 5 | . . . . . . . 5 . . . . . . Insert Component 2 | . . . . . . . 2 . . . . . . Analyze 3 | . . . . . . . 3 . . . . . . Garrison Access Hacks 3 | . . . . . . . 1 1 . . . 1 . Seal Access 3 | . . . . . . . 1 1 . . . 1 . Unauthorized Hacks 22 | . 7 . 5 . . . 7 1 . . . 1 1 Terminals 17 | . 5 . 4 . . . 7 1 . . . . . Botnet 3 | . . . 1 . . . 2 . . . . . . Skim 14 | . 5 . 3 . . . 5 1 . . . . . Fabricators . | . . . . . . . . . . . . . . Repair Stations 2 | . . . . . . . . . . . . 1 1 Recycling Units 3 | . 2 . 1 . . . . . . . . . . Tunnel 3 | . 2 . 1 . . . . . . . . . . Scrapoids 2 | . . . . . . . . . . . . 1 1 Scanalyzers . | . . . . . . . . . . . . . . Garrison Access . | . . . . . . . . . . . . . . Data Cores Recovered 1 | . 1 . . . . . . . . . . . . Used . | . . . . . . . . . . . . . . Hacking Detections 46 | . 10 1 8 . . . 9 7 1 4 . 4 2 Full Trace Events 2 | . 1 . . . . . 1 . . . . . . Feedback Events . | . . . . . . . . . . . . . . Feedback Blocked . | . . . . . . . . . . . . . . Robot Schematics Acquired . | . . . . . . . . . . . . . . Robots Built . | . . . . . . . . . . . . . . Authchips . | . . . . . . . . . . . . . . Time . | . . . . . . . . . . . . . . Total Robot Build Rating . | . . . . . . . . . . . . . . Part Schematics Acquired 2 | . . . . . . . 2 . . . . . . Parts Built . | . . . . . . . . . . . . . . Authchips . | . . . . . . . . . . . . . . Time . | . . . . . . . . . . . . . . Total Part Build Rating . | . . . . . . . . . . . . . . Parts Repaired 3 | . 2 . . . . . . 1 . . . . . Time 71 | . 52 . . . . . . 19 . . . . . Parts Recycled . | . . . . . . . . . . . . . . Recycled Matter . | . . . . . . . . . . . . . . Retrieved Matter . | . . . . . . . . . . . . . . Retrieved Components . | . . . . . . . . . . . . . . Parts Scanalyzed 2 | . . . . . . . 2 . . . . . . Part Schematics Acquired 2 | . . . . . . . 2 . . . . . . Parts Damaged . | . . . . . . . . . . . . . . Bothacking | -11 -10 -10 -9 -9 -9 -8 -8 -7 -7 -7 -7 -5 -4 ------------ Run | Yrd Mat Min Mat Min Exi Min Mat Fac Sto Rec Scr Fac Fac Used RIF Installer . | . . . . . . . . . . . . . . Robots Hacked . | . . . . . . . . . . . . . . Non-combat . | . . . . . . . . . . . . . . Combat . | . . . . . . . . . . . . . . Robot Hacks Applied . | . . . . . . . . . . . . . . Relay Couplers Released 3 | . . . . . . . . 3 . . . . . Machine Destruction 3 | . . . . . . . . 3 . . . . . Fabnet Peak Effective % . | . . . . . . . . . . . . . . Robots Rewired 5 | . . . . . . . . . . 5 . . . Allies Hacked . | . . . . . . . . . . . . . . Hacks Repelled . | . . . . . . . . . . . . . . Allies | -11 -10 -10 -9 -9 -9 -8 -8 -7 -7 -7 -7 -5 -4 -------- Run | Yrd Mat Min Mat Min Exi Min Mat Fac Sto Rec Scr Fac Fac Total Allies 21 | . . . . 3 . . . 6 2 5 . 5 . Largest Group 5 | . . . . 3 1 1 . 3 2 5 4 5 . Highest-Rated Group 238 | . . . . 40 16 16 . 93 62 152 120 238 . Highest-Rated Ally 50 | . . . . 16 16 16 . 31 31 40 40 50 . Total Orders . | . . . . . . . . . . . . . . Ally Attacks 157 | . . . . 34 . 10 . 29 10 7 . 67 . Total Damage 2864 | . . . . 287 . 145 . 461 119 182 . 1670 . Kills 21 | . . . . 4 . 2 . 3 . 1 . 11 . Allies Corrupted 2 | . . . . 1 . . . . . . . 1 . Allies Melted . | . . . . . . . . . . . . . . Intel | -11 -10 -10 -9 -9 -9 -8 -8 -7 -7 -7 -7 -5 -4 ------- Run | Yrd Mat Min Mat Min Exi Min Mat Fac Sto Rec Scr Fac Fac Robot Analysis Total 2 | . 2 . . . . . . . . . . . . Derelict Logs Recovered 3 | . . 2 . 1 . . . . . . . . . Drone Launches . | . . . . . . . . . . . . . . Drone Recoveries . | . . . . . . . . . . . . . . Exploration | -11 -10 -10 -9 -9 -9 -8 -8 -7 -7 -7 -7 -5 -4 ------------- Run | Yrd Mat Min Mat Min Exi Min Mat Fac Sto Rec Scr Fac Fac Turns Passed 24518 | 229 2669 1833 3071 1105 428 850 2489 1766 826 1684 3352 3555 661 Spaces Moved 11660 | 100 1286 736 1123 611 266 444 1059 900 227 670 2140 1717 381 Core 110 | 19 . . . . . . . . 7 . . 75 9 Treads 8022 | . 675 736 1123 611 266 444 1059 900 132 670 172 1234 . Legs 793 | 81 611 . . . . . . . 25 . . . 76 Wheels 2702 | . . . . . . . . . 63 . 1968 408 263 Hover 33 | . . . . . . . . . . . . . 33 Flight . | . . . . . . . . . . . . . . Fastest Speed 50 | 50 120 240 160 160 160 160 160 160 115 160 150 50 70 Average Speed 177 | 112 182 240 219 160 160 161 177 164 205 236 155 161 103 Slowest Speed 1100 | 150 240 240 240 160 160 240 240 242 1100 240 165 240 250 Overloaded Moves . | . . . . . . . . . . . . . . Propulsion Burnouts . | . . . . . . . . . . . . . . Robots Hopped . | . . . . . . . . . . . . . . Cave-ins Triggered . | . . . . . . . . . . . . . . Exploration Rate (%) 65 | 4 99 99 96 98 67 82 79 27 33 93 94 37 9 Regions Visited 13 Branch Regions 7 Pre-discovered Areas 10 | . 3 1 1 . 1 . 4 . . . . . . Known Exits Taken 5 | . . 1 1 . . 1 1 1 . . . . . Unknown Exits Taken 8 | 1 1 . . 1 1 . . . 1 1 1 1 . Scrap Searched 6 | . . 1 . 1 . 1 . . . . 3 . . Spaces Dug 59 | . . 15 4 18 . . 14 4 . . . 4 . Terrain Destroyed 516 | . 12 15 4 46 . 31 16 40 1 . . 281 70 Melee 19 | . . . 4 2 . . 6 4 . . . 3 . Projectile 131 | . . . . 2 . . 2 11 1 . . 103 12 AOE 366 | . 12 15 . 42 . 31 8 25 . . . 175 58 Terrain Rammed . | . . . . . . . . . . . . . . Walls Destroyed . | . . . . . . . . . . . . . . Machines Disabled . | . . . . . . . . . . . . . . Actions | -11 -10 -10 -9 -9 -9 -8 -8 -7 -7 -7 -7 -5 -4 --------- Run | Yrd Mat Min Mat Min Exi Min Mat Fac Sto Rec Scr Fac Fac Total 14105 | 182 1513 790 1526 699 270 521 1456 1080 458 754 2163 2177 516 Wait 983 | 54 120 17 172 48 . 20 175 87 76 37 . 135 42 Move 11647 | 99 1285 735 1122 610 265 443 1058 899 226 669 2139 1716 381 Hop . | . . . . . . . . . . . . . . Pick Up 159 | 6 29 4 21 3 . 7 20 7 19 4 5 32 2 Fast Attach 112 | 5 2 2 5 2 . 1 15 8 16 2 3 38 13 Attach 59 | 2 2 . 4 1 . 10 1 2 17 . 3 14 3 Detach 16 | . . 1 . 1 1 1 3 . 3 1 . 2 3 Swap 148 | . 14 11 38 4 2 3 26 9 5 1 3 31 1 Drop 205 | . 15 10 46 4 2 . 39 14 9 5 10 51 . Fire 657 | 16 46 5 104 22 . 35 109 48 84 12 . 144 32 Melee 74 | . . . 13 2 . 1 9 6 . . . 8 35 Ram 4 | . . . . . . . . . . . . . 4 Kick . | . . . . . . . . . . . . . . Crush 17 | . . 5 1 2 . . 1 . 3 . . 5 . Escape Stasis 1 | . . . . . . . . . . . . 1 . Rewire 23 | . . . . . . . . . . 23 . . . Trap . | . . . . . . . . . . . . . . Miscellaneous . | . . . . . . . . . . . . . . Route ------- -11/Scrapyard -10/Materials (discovered 6 exits: *Mat x3 / *Min x2 / [*Sub]) -10/Mines (discovered 3 exits: *Mat x2 / [*Sub]) -9/Materials (discovered 5 exits: *Mat x3 / *Min x2) -9/Mines (discovered 3 exits: *Mat x2 / *Exi) -9/Exiles (discovered 2 exits: [*Min x2]) -8/Mines -8/Materials (discovered 3 exits: *Fac x3) -7/Factory (discovered 4 exits: *Fac / *Sto / Low x2) -7/Storage (discovered 2 exits: Fac / *Rec) -7/Recycling (discovered 2 exits: *Fac / *Scr) -7/Scraptown (discovered 2 exits: *Fac x2) -5/Factory (discovered 3 exits: *Fac x3) -4/Factory (discovered 1 exit: Ext) History --------- Turn | Location | Event 29 | -11/Scrapyard | Discovered new exit (range 15) 230 | -11/Scrapyard | Entered Materials 318 | -10/Materials | Build established: Mutant 376 | -10/Materials | Discovered new exit (range 4) 394 | -10/Materials | Discovered new exit (range 10) 470 | -10/Materials | Discovered new exit (range 10) 606 | -10/Materials | Discovered new exit (range 16) 853 | -10/Materials | Discovered new exit (range 8) 919 | -10/Materials | Discovered new exit (range 2) 931 | -10/Materials | Learned location of Recycling (-7) 1057 | -10/Materials | Learned location of 2 exits from Materials 1102 | -10/Materials | Learned 2 Mines zone layouts 1138 | -10/Materials | Learned 2 Storage zone layouts 1163 | -10/Materials | Learned location of 2 exits from Subcaves 1198 | -10/Materials | Learned location of 1 exit from Storage 1243 | -10/Materials | Loaded intel: 33 machine locations 1370 | -10/Materials | Build established: Scavenger-Mutant 2418 | -10/Materials | Repaired Lgt. Treads 2445 | -10/Materials | Repaired Lgt. Treads 2899 | -10/Materials | Entered Mines 2900 | -10/Mines | Identified exit to Materials 3459 | -10/Mines | Joined a pair of Derelicts in attacking an 0b10 outpost 3494 | -10/Mines | Learned 4 Materials zone layouts 4636 | -10/Mines | Discovered new exit (range 10) 4732 | -10/Mines | Entered Materials 4732 | -9/Materials | Evolved 2 slots: Propulsion x1, Utility x1 4733 | -9/Materials | Identified exit to Materials 4734 | -9/Materials | Identified exit to Mines 6863 | -9/Materials | Discovered exit to Materials (range 16) 7532 | -9/Materials | First assault squad dispatched 7803 | -9/Materials | Entered Mines 7836 | -9/Mines | Met a Derelict bent on vengeance 7847 | -9/Mines | Assembled infested the area 7891 | -9/Mines | Core integrity fell below 50% 7933 | -9/Mines | Destroyed 11 combat bots 8109 | -9/Mines | Assisted by bots powering up and referring to "LRC-V3" 8153 | -9/Mines | Learned location of 1 exit from Materials 8185 | -9/Mines | Discovered exit to Materials (range 12) 8219 | -9/Mines | Received a Rocket Launcher from a helpful Derelict 8277 | -9/Mines | A weapon hastily lodged in a ceiling crevice suddenly fell to the ground 8374 | -9/Mines | Discovered exit to Materials (range 12) 8426 | -9/Mines | Found a damaged Exp. Sensor Array with a note attached 8429 | -9/Mines | Found Prototype Device 8429 | -9/Mines | Identified Exp. Sensor Array 8899 | -9/Mines | Deemed a non-threat by the Exiles lab entrance 8900 | -9/Mines | Discovered new exit (range 5) 8908 | -9/Mines | Entered Exiles 8908 | -9/Exiles | Accompanied by 1 ally 8932 | -9/Exiles | Discovered new exit (range 15) 8951 | -9/Exiles | Met 8R-AWN 8977 | -9/Exiles | Met EX-HEX 9037 | -9/Exiles | Met EX-DEC 9049 | -9/Exiles | Learned location of Zion (-6) 9117 | -9/Exiles | Visited The Gauntlet 9215 | -9/Exiles | Met EX-BIN 9322 | -9/Exiles | Discovered new exit (range 10) 9336 | -9/Exiles | Entered Mines 9336 | -8/Mines | Accompanied by 1 ally 9377 | -8/Mines | Lost 3 parts (1p1n1u) 9972 | -8/Mines | Lost 3 parts (2n1u) 10095 | -8/Mines | Lost 3 parts (1p1u1w) 10178 | -8/Mines | Discovered exit to Materials (range 5) 10186 | -8/Mines | Entered Materials 10186 | -8/Materials | Evolved 2 slots: Propulsion x1, Utility x1 10187 | -8/Materials | Identified exit to Factory 10308 | -8/Materials | Garrison activated, responded to threat 12216 | -8/Materials | Learned 2 Lower Caves zone layouts 12675 | -8/Materials | Entered Factory 12675 | -7/Factory | Evolved 2 slots: Utility x1, Weapon x1 12676 | -7/Factory | Identified exit to Storage 12676 | -7/Factory | Identified exit to Lower Caves 13040 | -7/Factory | Repaired Hvy. Armor Plating 13524 | -7/Factory | Allied Derelicts emerged from ambush trap array 13912 | -7/Factory | Lost 3 allies 14018 | -7/Factory | Discovered new exit (range 15) 14441 | -7/Factory | Entered Storage 14442 | -7/Storage | Identified exit to Factory 14521 | -7/Storage | Met a pair of Derelict thieves 14553 | -7/Storage | Garrison activated, responded to threat 14608 | -7/Storage | System corruption reached 10% 14670 | -7/Storage | Core integrity fell below 50% 14698 | -7/Storage | Lost 12 parts (1p6n3u2w) 15060 | -7/Storage | Lost 3 parts (1p2n) 15259 | -7/Storage | Used back door to open Recycling access 15259 | -7/Storage | Discovered new exit (range 4) 15267 | -7/Storage | Entered Recycling 15321 | -7/Recycling | Build established: Scavenger-Tank 16242 | -7/Recycling | Core integrity fell below 20% 16325 | -7/Recycling | Discovered new exit (range 10) 16891 | -7/Recycling | Scanned before Scraplab entrance 16924 | -7/Recycling | Entered Scraplab 16937 | -7/Recycling | Discovered new exit (range 2) 16951 | -7/Recycling | Entered Scraptown 16951 | -7/Scraptown | Accompanied by 4 allies 16951 | -7/Scraptown | System corruption cleaned by C-Scrubber 17201 | -7/Scraptown | Build established: Scavenger-Mutant 17284 | -7/Scraptown | Heard Great Nut preacher, LISTEN AND RECITE! 17405 | -7/Scraptown | Discovered new exit (range 7) 17546 | -7/Scraptown | Visited Awakened 17596 | -7/Scraptown | Visited Comm Corps 17675 | -7/Scraptown | Visited Fellowship of the Rings 17708 | -7/Scraptown | Visited TADAMA 17753 | -7/Scraptown | Visited IN-MT5's Study 18040 | -7/Scraptown | Visited SPCMW 18118 | -7/Scraptown | Visited Shadow of the Wyrm 18158 | -7/Scraptown | Visited UFD Registry 18158 | -7/Scraptown | Registered with UFD as "Fluxsys" 18247 | -7/Scraptown | Visited LU-1G1's Boring Crew 18364 | -7/Scraptown | Visited Botcube Research 18395 | -7/Scraptown | Visited Research Penetration Think Tank 18433 | -7/Scraptown | Visited Scrap Suit Storage 18536 | -7/Scraptown | Visited Curators Association 18725 | -7/Scraptown | Visited Science Testing Area 18751 | -7/Scraptown | Visited Abandonware Association 18767 | -7/Scraptown | Learned abandonware demo "REVENGE.EXE" 18800 | -7/Scraptown | Visited Derelict Rescue Squad 18812 | -7/Scraptown | Found DRS Beacon 19007 | -7/Scraptown | Discovered new exit (range 5) 19166 | -7/Scraptown | Found Botcube 19209 | -7/Scraptown | Found Scrap Suit 19211 | -7/Scraptown | Found Scrap Suit 19214 | -7/Scraptown | Found Scrap Suit 19447 | -7/Scraptown | Build established: Scavenger-Tank 20303 | -7/Scraptown | Entered Factory 20303 | -5/Factory | Accompanied by 4 allies 20303 | -5/Factory | Evolved 4 slots: Propulsion x1, Utility x2, Weapon x1 20979 | -5/Factory | Lost 4 parts (1p2n1u) 21681 | -5/Factory | Discovered new exit (range 11) 21785 | -5/Factory | Discovered new exit (range 6) 21830 | -5/Factory | Build established: Tank 22055 | -5/Factory | Lost 5 parts (3n2w) 22059 | -5/Factory | Destroyed 9 combat bots 22403 | -5/Factory | First assault squad dispatched 22572 | -5/Factory | Build established: Scavenger-Tank 22601 | -5/Factory | Discovered new exit (range 15) 22769 | -5/Factory | Scrapoid reinforcements arrived 23373 | -5/Factory | Build established: Tank 23617 | -5/Factory | System corruption reached 10% 23680 | -5/Factory | High security lockdown imminent 23712 | -5/Factory | Released all parts (8) 23716 | -5/Factory | Core integrity fell below 50% 23739 | -5/Factory | Lost 8 parts (2n4u2w) 23760 | -5/Factory | High security lockdown engaged 23858 | -5/Factory | Entered another Factory area 23858 | -4/Factory | Evolved 2 slots: Power x1, Propulsion x1 23859 | -4/Factory | Identified exit to Extension 24326 | -4/Factory | Lost 5 parts (1p2u2w) 24374 | -4/Factory | Lost 4 parts (1p2n1w) 24403 | -4/Factory | First assault squad dispatched 24512 | -4/Factory | Core integrity fell below 50% 24516 | -4/Factory | Core integrity fell below 20% 24518 | -4/Factory | System corruption reached 10% 24519 | -4/Factory | Destroyed by P-70 Sage with High-powered Shock Rifle Last Messages --------------- 24487_ Fabricator disabled. 24493_ Door malfunctions. 24505_ Slammed into P-70 Sage. 24505_ C-30 ARC bursts open, deploying its payload. 24505_ L-61 Swordsman unfolds itself. 24505_ B-60 Warrior unfolds itself. 24505_ E-15 Imp unfolds itself. 24506_ Slammed into P-70 Sage. 24508_ Adv. Heat Sink destroyed. 24508_ Ovr. Huge Scrapsphere destroyed. 24508_ Slammed into P-70 Sage. 24508_ Imp. Gyrokinetic Inverter blown off. 24508_ Imp. Signal Interpreter blown off. 24508_ E-15 Imp destroyed. 24511_ DSF Access disabled. 24513_ Slug penetrates Wall. 24514_ Critical hit (Burn: +37). 24516_ Knocked back. 24518_ Med. Storage Unit destroyed. 24519_ Chain reaction triggered in Imp. Ion Engine. Map ----- +----------------------------------------------------+ | ?????????????????????????????????????????????????? | | ?????????????????????????????????????????????????? | | ?????????????????????????????????????????????????? | | ?????????????????????????????????????????????????? | | ?????????????????????????????????????????????????? | | ?????????????????????????????????????????????????? | | ?????????????????????????????????????????????????? | | ?????????????????????????????????????????????????? | | ?????????????????????????????????????????????????? | | ?????????????????????????????????????????????????? | | ?????????????????????????????????????????????????? | | ?????????????????????????????????????????????????? | | ?????????????????????????????????????????????????? | | ???????????????##?#########?##???????????????????? | | ??????????????# #???????????????????? | | ??????????????# """ """ #???????????????????? | | ??????????????# """"" """"" #???????????????????? | | ????????????????""""" """"" ????????????????????? | | ?????????????????? ??????????????????????? | | ???????????????????? ????????????????????????? | | ???????????????????###/#############+####????????? | | ???????????######??# """" #????????? | | ???????????# [ #??# " #????????? | | ???????????# #??# pbl #????????? | | ???????????# #### p gR #????????? | | ???????????# +%%p%= Y@[! #????????? | | ???????????#! ###= ## l[!! ! #????????? | | ???????????######?##### [!% ^ ^ #????????? | | ??????????????????????# #????????? | | ??????????????????????# #????????? | | ??????????????????????# #????????? | | ??????????????????????# #????????? | | ??????????????????????# #????????? | | ??????????????????????########### #????????# | | ????????????????????????????????# #?????? | | ????????????????????????????????# ##### | | ????????????????????????????????# | | ????????????????????????????????# ### | | ?????????????????????""?????????# #??????? | | ?????????????????????"" ??????# " #??????? | | ???????????#?????????% ??????## """ #??????? | | ??????????? ?########+############ "" #??????? | | ????????? ? ?? % % "" #??????? | | ?????????? ???????# #??????? | | ??????????# ###### # % #??????? | | ??????????# # # #################???### | | ??????????# + """"# # ?? | | ??????????# # """"# # """""" | | ??????????# # """"# % # """""" | | ??????????# # """"# # """""" | +----------------------------------------------------+ Best States ------------- Heat Dissipation 78 Energy Generation 35 Energy Capacity 670 Matter Stores 450 Matter Capacity 450 Sight Range 16 Robot Scan Range 20 Terrain Scan Range 16 Terrain Scan Density 210 Jamming Range 12 Armor Coverage 1200 Utility Shielding 66 Weapon Shielding 66 Weapon Cycling 20 Phase Shifting 10 Evasion (%) 60 Targeting Accuracy 5 Recoil Reduction 5 Particle Charging 15 Kinecelleration 30 Item Schematics ----------------- Hcp. Storage Unit | -8/Materials | Scanalyzed Imp. VTOL Module | -8/Materials | Scanalyzed Robot Schematics ------------------ None Fabricated ------------ Nothing Alien Tech Used ----------------- None Achievements -------------- None Challenges ------------ None Game ------ Seed DerelictIonicPlating Manual? 0 Play Time 03:08:53 Cumulative 517.4 hours Start 2024.08.13 @ 20:47:45 End 2024.08.14 @ 17:06:46 Sessions 7 Manual Loads 0 Difficulty Rogue Special Mode None Game No. 153 Rogue 114 Adventurer 0 Explorer 39 Win Type - Total 14 Types 11/1/1/1/0/0/0/0/0 Lore% 69 Gallery% 79 Achievement% 72 Wizard Run 0 Options --------- Layout 0 ASCII 1 Keyboard 1 Movement Arrows Keybinds 0 Fullscreen 2 Font 36/Smallcaps Map View 76x50 Zoom Use 0% Tactical HUD 1 Map Filters NONE Filters NONE Steam 1 RUN: 1a86930f-4b54-4899-bebf-40790a668b65